[Event "*** SCC Grand Prix: Titled Tuesday Blitz"]
[Site "Chess.com"]
[Date "2020.08.25"]
[Round "2"]
[White "viniciusrego"]
[Black "KyronGriffith"]
[Result "1-0"]
[WhiteElo "2225"]
[BlackElo "2419"]
[TimeControl "180+1"]
[EndTime "10:19:25 PDT"]
[Termination "viniciusrego won by resignation"]

1. d4 {[%clk 0:03:00.9]} 1... Nf6 {[%clk 0:02:59.7]} 2. c4 {[%clk 0:03:01.1]}
2... e6 {[%clk 0:03:00.3]} 3. Nf3 {[%clk 0:03:00.7]} 3... d5 {[%clk 0:02:59.3]}
4. g3 {[%clk 0:03:00.5]} 4... Be7 {[%clk 0:02:58.1]} 5. Bg2 {[%clk 0:03:01.4]}
5... O-O {[%clk 0:02:57]} 6. O-O {[%clk 0:03:02.3]} 6... dxc4 {[%clk 0:02:57.4]}
7. Na3 {[%clk 0:03:02.5]} 7... Nc6 {[%clk 0:02:53.7]} 8. Nxc4 {[%clk 0:03:02.3]}
8... Bd7 {[%clk 0:02:46]} 9. Nce5 {[%clk 0:02:58.2]} 9... Be8 {[%clk 0:02:44]}
10. a3 {[%clk 0:02:52.7]} 10... Rb8 {[%clk 0:02:39.2]} 11. b4 {[%clk 0:02:51.8]}
11... a6 {[%clk 0:02:38.2]} 12. Qc2 {[%clk 0:02:50.9]} 12... Nxd4 {[%clk
0:02:30.9]} 13. Nxd4 {[%clk 0:02:50.9]} 13... Qxd4 {[%clk 0:02:31.8]} 14. Bb2
{[%clk 0:02:51.1]} 14... Qb6 {[%clk 0:02:20]} 15. Rac1 {[%clk 0:02:38.2]} 15...
Rc8 {[%clk 0:02:09.1]} 16. Rfd1 {[%clk 0:02:34.1]} 16... c5 {[%clk 0:02:07.4]}
17. Nc4 {[%clk 0:02:20.9]} 17... Qa7 {[%clk 0:01:59.2]} 18. Nd6 {[%clk
0:02:17.7]} 18... Bxd6 {[%clk 0:01:54.1]} 19. Rxd6 {[%clk 0:02:18.6]} 19... Bc6
{[%clk 0:01:49]} 20. Bxc6 {[%clk 0:02:09.5]} 20... Rxc6 {[%clk 0:01:49.3]} 21.
Rxc6 {[%clk 0:02:09.5]} 21... bxc6 {[%clk 0:01:50.2]} 22. Bxf6 {[%clk
0:02:09.7]} 22... gxf6 {[%clk 0:01:50]} 23. Qxc5 {[%clk 0:02:10]} 23... Qxc5
{[%clk 0:01:44]} 24. Rxc5 {[%clk 0:02:10.9]} 24... Rc8 {[%clk 0:01:44.1]} 25. a4
{[%clk 0:02:09.6]} 25... Rb8 {[%clk 0:01:39.8]} 26. Rxc6 {[%clk 0:02:09.7]}
26... Rxb4 {[%clk 0:01:40.3]} 27. Rxa6 {[%clk 0:02:10]} 27... Rb2 {[%clk
0:01:39.8]} 28. e3 {[%clk 0:02:09.8]} 28... Kg7 {[%clk 0:01:40.1]} 29. Ra7
{[%clk 0:02:08.6]} 29... Ra2 {[%clk 0:01:39.5]} 30. h4 {[%clk 0:02:08.6]} 30...
h5 {[%clk 0:01:35.8]} 31. Kg2 {[%clk 0:02:07.9]} 31... Rb2 {[%clk 0:01:30.5]}
32. Kf3 {[%clk 0:02:07.5]} 32... Ra2 {[%clk 0:01:31.1]} 33. Ra8 {[%clk
0:02:07.2]} 33... Ra3 {[%clk 0:01:31.5]} 34. a5 {[%clk 0:02:07.4]} 34... Ra2
{[%clk 0:01:32.1]} 35. a6 {[%clk 0:02:07.2]} 35... Ra4 {[%clk 0:01:32.8]} 36. a7
{[%clk 0:02:06.9]} 36... Ra5 {[%clk 0:01:31.1]} 37. Ke4 {[%clk 0:02:06.7]} 37...
Ra2 {[%clk 0:01:30.1]} 38. Kd4 {[%clk 0:02:06.9]} 38... Ra4+ {[%clk 0:01:29.6]}
39. Kc5 {[%clk 0:02:06.9]} 39... Ra2 {[%clk 0:01:28.3]} 40. Kb6 {[%clk
0:02:00.7]} 40... Rb2+ {[%clk 0:01:28.2]} 41. Kc6 {[%clk 0:02:00.9]} 41... Rc2+
{[%clk 0:01:28.8]} 42. Kb5 {[%clk 0:02:01.2]} 42... Rb2+ {[%clk 0:01:27.7]} 43.
Kc4 {[%clk 0:02:01.5]} 43... Ra2 {[%clk 0:01:28.3]} 44. Kb3 {[%clk 0:02:01.6]}
44... Ra1 {[%clk 0:01:28.3]} 45. Kb2 {[%clk 0:02:01.8]} 45... Ra6 {[%clk
0:01:28.2]} 46. Kc2 {[%clk 0:02:01.4]} 46... Ra2+ {[%clk 0:01:28.1]} 47. Kd3
{[%clk 0:02:01.4]} 47... Ra3+ {[%clk 0:01:28.1]} 48. Ke2 {[%clk 0:02:01.9]}
48... Ra2+ {[%clk 0:01:28.3]} 49. Kf3 {[%clk 0:02:02.4]} 49... Ra4 {[%clk
0:01:29.1]} 50. Kg2 {[%clk 0:01:59.8]} 50... Ra2 {[%clk 0:01:25.9]} 51. Kh3
{[%clk 0:02:00]} 51... Ra4 {[%clk 0:01:25.9]} 52. f3 {[%clk 0:01:59.7]} 52...
Ra3 {[%clk 0:01:25.2]} 53. g4 {[%clk 0:01:58.7]} 53... hxg4+ {[%clk 0:01:25.2]}
54. Kxg4 {[%clk 0:01:58.8]} 54... Ra4+ {[%clk 0:01:24.8]} 55. Kg3 {[%clk
0:01:50.4]} 55... Ra2 {[%clk 0:01:24.1]} 56. e4 {[%clk 0:01:45.2]} 56... Ra4
{[%clk 0:01:23.7]} 57. Kg4 {[%clk 0:01:40]} 57... Ra5 {[%clk 0:01:22.5]} 58. f4
{[%clk 0:01:36.6]} 58... Ra3 {[%clk 0:01:20.6]} 59. h5 {[%clk 0:01:35.6]} 59...
Ra5 {[%clk 0:01:19.7]} 60. e5 {[%clk 0:01:27]} 60... fxe5 {[%clk 0:00:48.9]} 61.
fxe5 {[%clk 0:01:24.7]} 61... Kh7 {[%clk 0:00:41.2]} 62. h6 {[%clk 0:01:17.5]}
62... Ra1 {[%clk 0:00:18.3]} 63. Kg5 {[%clk 0:01:15]} 63... Ra5 {[%clk
0:00:09.6]} 64. Kf6 {[%clk 0:01:14.6]} 64... Ra6 {[%clk 0:00:08.4]} 65. Rf8
{[%clk 0:01:13.8]} 65... Rxa7 {[%clk 0:00:04.9]} 66. Rxf7+ {[%clk 0:01:14]} 1-0

[Event "*** SCC Grand Prix: Titled Tuesday Blitz"]
[Site "Chess.com"]
[Date "2020.08.25"]
[Round "2"]
[White "GaboSalazar2001"]
[Black "evgenyermolaev"]
[Result "1-0"]
[WhiteElo "2281"]
[BlackElo "2470"]
[TimeControl "180+1"]
[EndTime "10:19:27 PDT"]
[Termination "GaboSalazar2001 won on time"]

1. e4 {[%clk 0:03:00.9]} 1... d5 {[%clk 0:02:56.4]} 2. exd5 {[%clk 0:03:00]}
2... Qxd5 {[%clk 0:02:57.3]} 3. Nc3 {[%clk 0:03:00.5]} 3... Qe6+ {[%clk
0:02:57.4]} 4. Be2 {[%clk 0:02:55.6]} 4... Qg6 {[%clk 0:02:57.3]} 5. Bf3 {[%clk
0:02:41.3]} 5... e5 {[%clk 0:02:56.7]} 6. d4 {[%clk 0:02:23.7]} 6... Nc6 {[%clk
0:02:55.8]} 7. Bxc6+ {[%clk 0:02:17.4]} 7... Qxc6 {[%clk 0:02:53.4]} 8. d5
{[%clk 0:02:17.9]} 8... Qg6 {[%clk 0:02:45]} 9. Nf3 {[%clk 0:02:03.9]} 9... Qxg2
{[%clk 0:02:01.1]} 10. Rg1 {[%clk 0:02:04]} 10... Qh3 {[%clk 0:01:59.5]} 11. Rg3
{[%clk 0:02:04.6]} 11... Qd7 {[%clk 0:01:39.6]} 12. Nxe5 {[%clk 0:02:02.2]}
12... Qd8 {[%clk 0:01:36.3]} 13. Qe2 {[%clk 0:01:55.9]} 13... Ne7 {[%clk
0:01:26.2]} 14. Bf4 {[%clk 0:01:35.7]} 14... g6 {[%clk 0:01:18.3]} 15. Bg5
{[%clk 0:01:08.9]} 15... Bg7 {[%clk 0:01:08.8]} 16. Nc4 {[%clk 0:01:01]} 16...
f6 {[%clk 0:01:02.7]} 17. Re3 {[%clk 0:00:46.2]} 17... fxg5 {[%clk 0:00:50.9]}
18. d6 {[%clk 0:00:46.5]} 18... cxd6 {[%clk 0:00:50.2]} 19. Nd5 {[%clk
0:00:46.2]} 19... O-O {[%clk 0:00:29.3]} 20. Nxe7+ {[%clk 0:00:46.4]} 20... Kh8
{[%clk 0:00:28]} 21. O-O-O {[%clk 0:00:47.3]} 21... Bf5 {[%clk 0:00:18.6]} 22.
Rxd6 {[%clk 0:00:31.6]} 22... Qc7 {[%clk 0:00:15.3]} 23. Nxf5 {[%clk 0:00:31.6]}
23... Rxf5 {[%clk 0:00:13]} 24. Re7 {[%clk 0:00:32.2]} 24... Qc5 {[%clk
0:00:09.5]} 25. Rdd7 {[%clk 0:00:26.2]} 25... Rxf2 {[%clk 0:00:08.4]} 26. Qd3
{[%clk 0:00:18.4]} 26... Rg8 {[%clk 0:00:06]} 27. b3 {[%clk 0:00:03.7]} 27...
Rxh2 {[%clk 0:00:05.4]} 28. c3 {[%clk 0:00:02.2]} 28... Qg1+ {[%clk 0:00:04.1]}
29. Qd1 {[%clk 0:00:01.2]} 29... Qxd1+ {[%clk 0:00:04.1]} 30. Kxd1 {[%clk
0:00:02.1]} 30... h5 {[%clk 0:00:02.4]} 31. Ne5 {[%clk 0:00:01.5]} 1-0

[Event "*** SCC Grand Prix: Titled Tuesday Blitz"]
[Site "Chess.com"]
[Date "2020.08.25"]
[Round "2"]
[White "korbul"]
[Black "Dannyyi"]
[Result "1-0"]
[WhiteElo "2552"]
[BlackElo "2253"]
[TimeControl "180+1"]
[EndTime "10:19:29 PDT"]
[Termination "korbul won by checkmate"]

1. e4 {[%clk 0:03:00.9]} 1... e5 {[%clk 0:02:51.9]} 2. Nf3 {[%clk 0:03:00.2]}
2... Nc6 {[%clk 0:02:51.8]} 3. Bb5 {[%clk 0:02:59.9]} 3... a6 {[%clk 0:02:51.4]}
4. Ba4 {[%clk 0:02:59.6]} 4... Nf6 {[%clk 0:02:52]} 5. d3 {[%clk 0:02:59.6]}
5... b5 {[%clk 0:02:52.4]} 6. Bb3 {[%clk 0:02:58.5]} 6... Bc5 {[%clk 0:02:53]}
7. O-O {[%clk 0:02:58.7]} 7... O-O {[%clk 0:02:53.6]} 8. a4 {[%clk 0:02:58.5]}
8... Bb7 {[%clk 0:02:51.2]} 9. c3 {[%clk 0:02:48.2]} 9... h6 {[%clk 0:02:42.1]}
10. Re1 {[%clk 0:02:45.3]} 10... Re8 {[%clk 0:02:38.9]} 11. Nbd2 {[%clk
0:02:44.4]} 11... Bb6 {[%clk 0:02:28.8]} 12. Nf1 {[%clk 0:02:31]} 12... d5
{[%clk 0:02:23.6]} 13. exd5 {[%clk 0:02:25.2]} 13... Nxd5 {[%clk 0:02:24.5]} 14.
axb5 {[%clk 0:02:17.4]} 14... axb5 {[%clk 0:02:23.6]} 15. Rxa8 {[%clk
0:02:16.3]} 15... Bxa8 {[%clk 0:02:24.5]} 16. Ng3 {[%clk 0:02:14.9]} 16... b4
{[%clk 0:02:00.4]} 17. Qc2 {[%clk 0:01:30]} 17... Na5 {[%clk 0:01:41.6]} 18. Ba4
{[%clk 0:01:28.2]} 18... Re6 {[%clk 0:01:15]} 19. d4 {[%clk 0:01:20.9]} 19...
bxc3 {[%clk 0:00:57.1]} 20. dxe5 {[%clk 0:00:57.9]} 20... cxb2 {[%clk 0:00:50]}
21. Bxb2 {[%clk 0:00:57.3]} 21... Nf4 {[%clk 0:00:43]} 22. Rd1 {[%clk
0:00:54.1]} 22... Qe7 {[%clk 0:00:38.8]} 23. Nf5 {[%clk 0:00:52.9]} 23... Qf8
{[%clk 0:00:33.9]} 24. N5d4 {[%clk 0:00:36.7]} 24... Rg6 {[%clk 0:00:26.5]} 25.
g3 {[%clk 0:00:22]} 25... Bxf3 {[%clk 0:00:22.6]} 26. Nxf3 {[%clk 0:00:20.2]}
26... Nh3+ {[%clk 0:00:23.5]} 27. Kg2 {[%clk 0:00:20.6]} 27... Nxf2 {[%clk
0:00:22.4]} 28. Rd7 {[%clk 0:00:19.2]} 28... Ng4 {[%clk 0:00:20.5]} 29. Bc1
{[%clk 0:00:18.9]} 29... Qb4 {[%clk 0:00:15.8]} 30. e6 {[%clk 0:00:15.4]} 30...
Qf8 {[%clk 0:00:03.1]} 31. Rxf7 {[%clk 0:00:13.6]} 31... Kh7 {[%clk 0:00:04]}
32. Rxf8 {[%clk 0:00:13.1]} 32... Be3 {[%clk 0:00:02.2]} 33. Nh4 {[%clk
0:00:12.6]} 33... Bxc1 {[%clk 0:00:01.4]} 34. Qxg6# {[%clk 0:00:12.3]} 1-0

[Event "*** SCC Grand Prix: Titled Tuesday Blitz"]
[Site "Chess.com"]
[Date "2020.08.25"]
[Round "2"]
[White "Guenplen"]
[Black "AttackSparrow"]
[Result "0-1"]
[WhiteElo "2888"]
[BlackElo "2359"]
[TimeControl "180+1"]
[EndTime "10:19:30 PDT"]
[Termination "AttackSparrow won on time"]

1. d4 {[%clk 0:03:00.9]} 1... Nf6 {[%clk 0:02:58.6]} 2. Bf4 {[%clk 0:03:00.8]}
2... g6 {[%clk 0:02:57.5]} 3. Nc3 {[%clk 0:02:57.2]} 3... d5 {[%clk 0:02:55.1]}
4. e3 {[%clk 0:02:57.1]} 4... Bg7 {[%clk 0:02:53.6]} 5. h4 {[%clk 0:02:57]} 5...
h5 {[%clk 0:02:52.9]} 6. Nf3 {[%clk 0:02:56.7]} 6... O-O {[%clk 0:02:51]} 7. Ne5
{[%clk 0:02:44.5]} 7... c5 {[%clk 0:02:47.8]} 8. Be2 {[%clk 0:02:32.6]} 8... Nc6
{[%clk 0:02:42.4]} 9. Qd2 {[%clk 0:02:22.8]} 9... Qa5 {[%clk 0:02:16.3]} 10. a3
{[%clk 0:02:15.2]} 10... Rd8 {[%clk 0:02:08.4]} 11. Rd1 {[%clk 0:02:04]} 11...
cxd4 {[%clk 0:02:05]} 12. exd4 {[%clk 0:02:03.5]} 12... Bf5 {[%clk 0:02:04.6]}
13. O-O {[%clk 0:01:45.4]} 13... Rac8 {[%clk 0:01:51.2]} 14. Nxc6 {[%clk
0:01:09.8]} 14... Rxc6 {[%clk 0:01:47.6]} 15. Be5 {[%clk 0:01:00.6]} 15... Rdc8
{[%clk 0:01:33.9]} 16. Bd3 {[%clk 0:00:58.5]} 16... Bxd3 {[%clk 0:01:29.6]} 17.
cxd3 {[%clk 0:00:58.5]} 17... e6 {[%clk 0:01:11.8]} 18. Qf4 {[%clk 0:00:54.9]}
18... Qd8 {[%clk 0:01:10.4]} 19. f3 {[%clk 0:00:49.9]} 19... Nd7 {[%clk
0:01:08.3]} 20. Bxg7 {[%clk 0:00:44.1]} 20... Kxg7 {[%clk 0:01:09.2]} 21. g3
{[%clk 0:00:37.2]} 21... Qf6 {[%clk 0:01:06.8]} 22. Qe3 {[%clk 0:00:35.2]} 22...
Rb6 {[%clk 0:00:46.4]} 23. Rf2 {[%clk 0:00:31.5]} 23... Rb3 {[%clk 0:00:43]} 24.
Rc2 {[%clk 0:00:25.5]} 24... Rc6 {[%clk 0:00:38.5]} 25. Rdc1 {[%clk 0:00:23.2]}
25... Qd8 {[%clk 0:00:27.5]} 26. Kf2 {[%clk 0:00:20.3]} 26... Qc7 {[%clk
0:00:25.8]} 27. Qd2 {[%clk 0:00:18.7]} 27... Qb6 {[%clk 0:00:24.2]} 28. Ne2
{[%clk 0:00:18.2]} 28... Rxc2 {[%clk 0:00:21.2]} 29. Rxc2 {[%clk 0:00:19.1]}
29... Ne5 {[%clk 0:00:20.2]} 30. Nf4 {[%clk 0:00:07.9]} 30... Qxd4+ {[%clk
0:00:19.2]} 31. Qe3 {[%clk 0:00:08.4]} 31... Nxd3+ {[%clk 0:00:14.7]} 32. Nxd3
{[%clk 0:00:05.6]} 32... Qxd3 {[%clk 0:00:13.9]} 33. Qe5+ {[%clk 0:00:04.9]}
33... Kh7 {[%clk 0:00:13.6]} 34. Rc8 {[%clk 0:00:02.8]} 34... Qxf3+ {[%clk
0:00:09.4]} 35. Ke1 {[%clk 0:00:01.7]} 35... Re3+ {[%clk 0:00:08.8]} 0-1

[Event "*** SCC Grand Prix: Titled Tuesday Blitz"]
[Site "Chess.com"]
[Date "2020.08.25"]
[Round "2"]
[White "freshfoodcompany"]
[Black "Alexsur1981"]
[Result "0-1"]
[WhiteElo "2361"]
[BlackElo "2648"]
[TimeControl "180+1"]
[EndTime "10:19:31 PDT"]
[Termination "Alexsur1981 won by resignation"]

1. d4 {[%clk 0:03:00.9]} 1... d6 {[%clk 0:02:58.5]} 2. Nf3 {[%clk 0:02:59.6]}
2... Bg4 {[%clk 0:02:57.9]} 3. c4 {[%clk 0:02:59.6]} 3... c6 {[%clk 0:02:57.2]}
4. Nc3 {[%clk 0:02:59.5]} 4... Nd7 {[%clk 0:02:56.9]} 5. e4 {[%clk 0:02:59.4]}
5... Ngf6 {[%clk 0:02:56.5]} 6. Be2 {[%clk 0:02:58.6]} 6... e5 {[%clk
0:02:56.6]} 7. O-O {[%clk 0:02:54.9]} 7... Be7 {[%clk 0:02:56.2]} 8. h3 {[%clk
0:02:48.9]} 8... Bh5 {[%clk 0:02:56]} 9. Be3 {[%clk 0:02:45.3]} 9... O-O {[%clk
0:02:54.7]} 10. dxe5 {[%clk 0:02:44.5]} 10... dxe5 {[%clk 0:02:54.3]} 11. Qc2
{[%clk 0:02:39.1]} 11... Qc7 {[%clk 0:02:51.4]} 12. Rfd1 {[%clk 0:02:38.1]}
12... Bc5 {[%clk 0:02:50.2]} 13. Bxc5 {[%clk 0:02:34.2]} 13... Nxc5 {[%clk
0:02:51.1]} 14. b4 {[%clk 0:02:33.4]} 14... Ne6 {[%clk 0:02:49.3]} 15. Rd2
{[%clk 0:02:19.3]} 15... a5 {[%clk 0:02:36.9]} 16. b5 {[%clk 0:02:17.3]} 16...
Rad8 {[%clk 0:02:31.5]} 17. Rad1 {[%clk 0:01:59.1]} 17... Bxf3 {[%clk
0:02:30.3]} 18. Bxf3 {[%clk 0:01:58.8]} 18... Nd4 {[%clk 0:02:30.3]} 19. Qd3
{[%clk 0:01:51.8]} 19... Nd7 {[%clk 0:02:28.9]} 20. Qe3 {[%clk 0:01:48.7]} 20...
Nb6 {[%clk 0:02:25.5]} 21. Be2 {[%clk 0:01:41.9]} 21... Qe7 {[%clk 0:02:22.9]}
22. bxc6 {[%clk 0:01:39.1]} 22... bxc6 {[%clk 0:02:23.8]} 23. Bf1 {[%clk
0:01:35.5]} 23... Qc5 {[%clk 0:01:46.2]} 24. Ne2 {[%clk 0:01:03.7]} 24... Nxe2+
{[%clk 0:01:45.5]} 25. Qxe2 {[%clk 0:01:03]} 25... Rxd2 {[%clk 0:01:44.6]} 26.
Rxd2 {[%clk 0:01:02.6]} 26... g6 {[%clk 0:01:42.5]} 27. Kh2 {[%clk 0:01:00.4]}
27... Rb8 {[%clk 0:01:33.6]} 28. Rb2 {[%clk 0:00:57.4]} 28... Rd8 {[%clk
0:01:32.6]} 29. Rd2 {[%clk 0:00:50.1]} 29... Rd4 {[%clk 0:01:31.8]} 30. Rxd4
{[%clk 0:00:49.3]} 30... Qxd4 {[%clk 0:01:32.7]} 31. f3 {[%clk 0:00:44.7]} 31...
Na4 {[%clk 0:01:30.3]} 32. Qd3 {[%clk 0:00:43.3]} 32... Nc3 {[%clk 0:01:24.2]}
33. a3 {[%clk 0:00:30.9]} 33... h5 {[%clk 0:01:23]} 34. Kg3 {[%clk 0:00:28.6]}
34... Kg7 {[%clk 0:01:14]} 35. Qxd4 {[%clk 0:00:28]} 35... exd4 {[%clk
0:01:14.9]} 36. Kf2 {[%clk 0:00:27.6]} 36... Nb1 {[%clk 0:01:05.9]} 37. Bd3
{[%clk 0:00:23.4]} 37... Nxa3 {[%clk 0:01:06.2]} 38. Ke2 {[%clk 0:00:23.1]}
38... Kf6 {[%clk 0:01:02.9]} 39. Kd2 {[%clk 0:00:23.2]} 39... Ke5 {[%clk
0:01:03.2]} 40. g3 {[%clk 0:00:21.8]} 40... g5 {[%clk 0:01:03.1]} 41. Kc1 {[%clk
0:00:20.6]} 41... h4 {[%clk 0:01:03.7]} 42. gxh4 {[%clk 0:00:19.6]} 42... gxh4
{[%clk 0:01:04.6]} 43. Kb2 {[%clk 0:00:19.3]} 43... Nxc4+ {[%clk 0:01:00.7]} 44.
Bxc4 {[%clk 0:00:19.2]} 44... f6 {[%clk 0:01:01.6]} 45. Ka3 {[%clk 0:00:18.2]}
45... Kf4 {[%clk 0:01:01.7]} 46. Be6 {[%clk 0:00:15.5]} 46... Kxf3 {[%clk
0:01:00.3]} 47. Bd7 {[%clk 0:00:14]} 47... d3 {[%clk 0:00:55]} 48. Bxc6 {[%clk
0:00:13.7]} 48... d2 {[%clk 0:00:55.5]} 49. e5+ {[%clk 0:00:09.3]} 49... Ke2
{[%clk 0:00:52.3]} 50. Bb5+ {[%clk 0:00:05.1]} 50... Ke1 {[%clk 0:00:51.9]} 51.
Ba4 {[%clk 0:00:04.2]} 51... fxe5 {[%clk 0:00:51.4]} 52. Bc2 {[%clk 0:00:04.1]}
52... e4 {[%clk 0:00:50.6]} 53. Ka4 {[%clk 0:00:03.7]} 53... e3 {[%clk
0:00:51.5]} 54. Kxa5 {[%clk 0:00:03.7]} 54... e2 {[%clk 0:00:52.4]} 55. Kb4
{[%clk 0:00:04.1]} 55... d1=Q {[%clk 0:00:53.3]} 56. Bxd1 {[%clk 0:00:03.7]}
56... exd1=Q {[%clk 0:00:54.2]} 0-1

[Event "*** SCC Grand Prix: Titled Tuesday Blitz"]
[Site "Chess.com"]
[Date "2020.08.25"]
[Round "2"]
[White "Zmeeed63"]
[Black "googlegoom"]
[Result "1-0"]
[WhiteElo "2267"]
[BlackElo "2438"]
[TimeControl "180+1"]
[EndTime "10:19:31 PDT"]
[Termination "Zmeeed63 won by resignation"]

1. d4 {[%clk 0:03:00.9]} 1... d5 {[%clk 0:02:59.9]} 2. c4 {[%clk 0:03:00.5]}
2... c6 {[%clk 0:03:00.1]} 3. Nc3 {[%clk 0:02:59.7]} 3... Nf6 {[%clk 0:03:00.4]}
4. e3 {[%clk 0:03:00.1]} 4... e6 {[%clk 0:03:00.7]} 5. Nf3 {[%clk 0:03:00.2]}
5... Nbd7 {[%clk 0:02:57.2]} 6. Bd3 {[%clk 0:03:00.2]} 6... Bd6 {[%clk
0:02:53.2]} 7. e4 {[%clk 0:02:59.7]} 7... dxe4 {[%clk 0:02:48.7]} 8. Nxe4 {[%clk
0:03:00.6]} 8... Nxe4 {[%clk 0:02:49.2]} 9. Bxe4 {[%clk 0:03:01.5]} 9... h6
{[%clk 0:02:49.4]} 10. O-O {[%clk 0:03:01.3]} 10... O-O {[%clk 0:02:49.1]} 11.
Bc2 {[%clk 0:03:00.5]} 11... e5 {[%clk 0:02:49]} 12. Qd3 {[%clk 0:02:56]} 12...
f5 {[%clk 0:02:47.4]} 13. dxe5 {[%clk 0:02:54.1]} 13... Nxe5 {[%clk 0:02:47.4]}
14. Nxe5 {[%clk 0:02:54.3]} 14... Bxe5 {[%clk 0:02:48.1]} 15. Qb3 {[%clk
0:02:42.4]} 15... Qc7 {[%clk 0:02:35.8]} 16. h3 {[%clk 0:02:41.5]} 16... Be6
{[%clk 0:02:30.6]} 17. Re1 {[%clk 0:02:28]} 17... Rae8 {[%clk 0:02:29.6]} 18.
Be3 {[%clk 0:02:24.9]} 18... b6 {[%clk 0:02:23.4]} 19. f3 {[%clk 0:02:23.1]}
19... Bh2+ {[%clk 0:01:54.7]} 20. Kh1 {[%clk 0:02:22.8]} 20... Bg3 {[%clk
0:01:55]} 21. Re2 {[%clk 0:02:20.8]} 21... f4 {[%clk 0:01:19]} 22. Bd4 {[%clk
0:02:08.9]} 22... c5 {[%clk 0:01:11.2]} 23. Be5 {[%clk 0:01:57.7]} 23... Qc8
{[%clk 0:01:10.7]} 24. Bd6 {[%clk 0:01:38.9]} 24... Bxh3 {[%clk 0:01:05]} 25.
Rxe8 {[%clk 0:01:27.4]} 25... Rxe8 {[%clk 0:01:00.8]} 26. Qd3 {[%clk 0:01:27.8]}
26... Re6 {[%clk 0:00:29.1]} 27. Rd1 {[%clk 0:00:54.8]} 27... Rf6 {[%clk
0:00:27]} 28. Be5 {[%clk 0:00:50]} 28... Bf5 {[%clk 0:00:25.4]} 29. Qd5+ {[%clk
0:00:45]} 29... Be6 {[%clk 0:00:25.7]} 30. Qd3 {[%clk 0:00:35.5]} 30... Bf5
{[%clk 0:00:19]} 31. Qd5+ {[%clk 0:00:34.9]} 31... Be6 {[%clk 0:00:16.7]} 32.
Qd6 {[%clk 0:00:31.5]} 32... Rf8 {[%clk 0:00:14.5]} 33. Qe7 {[%clk 0:00:26.9]}
33... Bf7 {[%clk 0:00:12]} 34. Rd7 {[%clk 0:00:19.2]} 34... Qe8 {[%clk
0:00:11.3]} 35. Qd6 {[%clk 0:00:15.5]} 35... Qe6 {[%clk 0:00:09.5]} 36. Qxe6
{[%clk 0:00:08.5]} 36... Bxe6 {[%clk 0:00:10.4]} 37. Rxg7+ {[%clk 0:00:09.4]}
37... Kh8 {[%clk 0:00:09.4]} 38. Rxg3+ {[%clk 0:00:10.3]} 1-0

[Event "*** SCC Grand Prix: Titled Tuesday Blitz"]
[Site "Chess.com"]
[Date "2020.08.25"]
[Round "2"]
[White "Gabrielian_Artur"]
[Black "2346PL"]
[Result "1-0"]
[WhiteElo "2711"]
[BlackElo "2472"]
[TimeControl "180+1"]
[EndTime "10:19:32 PDT"]
[Termination "Gabrielian_Artur won by resignation"]

1. e4 {[%clk 0:03:00.9]} 1... c5 {[%clk 0:02:59.9]} 2. Nc3 {[%clk 0:03:00.5]}
2... e6 {[%clk 0:02:59.1]} 3. Nge2 {[%clk 0:02:58.7]} 3... d5 {[%clk 0:02:55.6]}
4. exd5 {[%clk 0:02:58]} 4... exd5 {[%clk 0:02:55.7]} 5. d4 {[%clk 0:02:58.1]}
5... Nf6 {[%clk 0:02:55.1]} 6. g3 {[%clk 0:02:57.7]} 6... Nc6 {[%clk 0:02:54.7]}
7. Bg2 {[%clk 0:02:57.6]} 7... Bg4 {[%clk 0:02:54.2]} 8. O-O {[%clk 0:02:56.4]}
8... c4 {[%clk 0:02:45.9]} 9. h3 {[%clk 0:02:52.2]} 9... Bf5 {[%clk 0:02:42.2]}
10. Nf4 {[%clk 0:02:49.2]} 10... Be4 {[%clk 0:02:38.2]} 11. Re1 {[%clk
0:02:44.3]} 11... Be7 {[%clk 0:02:30]} 12. Nxe4 {[%clk 0:02:20.6]} 12... dxe4
{[%clk 0:02:27.6]} 13. c3 {[%clk 0:02:18]} 13... O-O {[%clk 0:02:24.5]} 14. Bxe4
{[%clk 0:02:16.2]} 14... Nxe4 {[%clk 0:02:24]} 15. Rxe4 {[%clk 0:02:16.1]} 15...
Qd7 {[%clk 0:02:17.8]} 16. Qf3 {[%clk 0:02:06.9]} 16... Rae8 {[%clk 0:02:07.2]}
17. Bd2 {[%clk 0:02:04.1]} 17... g5 {[%clk 0:02:03.4]} 18. Nh5 {[%clk
0:01:53.2]} 18... f5 {[%clk 0:02:03.5]} 19. Re2 {[%clk 0:01:45.3]} 19... Bd8
{[%clk 0:01:52.7]} 20. Rae1 {[%clk 0:01:42.5]} 20... Rxe2 {[%clk 0:01:44.9]} 21.
Rxe2 {[%clk 0:01:42.3]} 21... h6 {[%clk 0:01:42.2]} 22. h4 {[%clk 0:01:01.4]}
22... Qf7 {[%clk 0:01:36.1]} 23. hxg5 {[%clk 0:00:58.8]} 23... hxg5 {[%clk
0:01:35.9]} 24. d5 {[%clk 0:00:56.8]} 24... g4 {[%clk 0:01:24.6]} 25. Qe3 {[%clk
0:00:55.6]} 25... Qxh5 {[%clk 0:01:19.2]} 26. dxc6 {[%clk 0:00:55.6]} 26... bxc6
{[%clk 0:01:19.6]} 27. Qe6+ {[%clk 0:00:55.3]} 27... Qf7 {[%clk 0:01:10.3]} 28.
Qxc6 {[%clk 0:00:54.5]} 28... Bb6 {[%clk 0:01:04]} 29. Re6 {[%clk 0:00:54]}
29... Rd8 {[%clk 0:00:55.3]} 30. Bg5 {[%clk 0:00:53.2]} 30... Rd1+ {[%clk
0:00:46.5]} 31. Kg2 {[%clk 0:00:53]} 31... Rd7 {[%clk 0:00:26.6]} 32. Bf4 {[%clk
0:00:24]} 32... Kh7 {[%clk 0:00:15.3]} 33. Rh6+ {[%clk 0:00:23.3]} 33... Kg7
{[%clk 0:00:15.1]} 34. Be5+ {[%clk 0:00:23.1]} 34... Kf8 {[%clk 0:00:15.4]} 35.
Qc8+ {[%clk 0:00:18.2]} 35... Ke7 {[%clk 0:00:14.3]} 36. Kg1 {[%clk 0:00:11.9]}
36... Rd1+ {[%clk 0:00:12.8]} 37. Kh2 {[%clk 0:00:12.3]} 37... Rd8 {[%clk
0:00:10.7]} 38. Qb7+ {[%clk 0:00:11.8]} 38... Rd7 {[%clk 0:00:10.7]} 39. Bd6+
{[%clk 0:00:11.9]} 39... Ke8 {[%clk 0:00:06.5]} 40. Rh8+ {[%clk 0:00:11.9]} 1-0